[Event "Early-Titled-Tuesday-Blitz-May-14-2024"]
[Site "Chess.com"]
[Date "2024.05.14"]
[Round "5"]
[White "gau248"]
[Black "SargissyanSargis"]
[Result "1-0"]
[WhiteElo "2605"]
[BlackElo "2431"]
[TimeControl "180+1"]
[EndTime "8:58:41 PDT"]
[Termination "gau248 won by resignation"]

1. c4 {[%clk 0:03:00.9]} 1... e5 {[%clk 0:02:56.9]} 2. Nc3 {[%clk 0:03:00]} 2...
Nf6 {[%clk 0:02:57]} 3. d3 {[%clk 0:02:57]} 3... d5 {[%clk 0:02:55.4]} 4. cxd5
{[%clk 0:02:57.1]} 4... Nxd5 {[%clk 0:02:56.1]} 5. Nf3 {[%clk 0:02:57.6]} 5...
Nc6 {[%clk 0:02:56]} 6. a3 {[%clk 0:02:57.2]} 6... Be7 {[%clk 0:02:55]} 7. e4
{[%clk 0:02:57.3]} 7... Nf6 {[%clk 0:02:47.2]} 8. Be2 {[%clk 0:02:55.4]} 8...
O-O {[%clk 0:02:47.6]} 9. O-O {[%clk 0:02:54.4]} 9... Bg4 {[%clk 0:02:45.2]} 10.
b4 {[%clk 0:02:54.2]} 10... Bxf3 {[%clk 0:02:39.3]} 11. Bxf3 {[%clk 0:02:53.9]}
11... Nd4 {[%clk 0:02:40]} 12. Bb2 {[%clk 0:02:47.6]} 12... Qd7 {[%clk
0:02:38.4]} 13. g3 {[%clk 0:02:39.8]} 13... a5 {[%clk 0:02:33.3]} 14. bxa5
{[%clk 0:02:20.4]} 14... Rxa5 {[%clk 0:02:32.5]} 15. Bg2 {[%clk 0:02:20.8]}
15... Rfa8 {[%clk 0:02:26.1]} 16. a4 {[%clk 0:02:17.5]} 16... Nc6 {[%clk
0:01:46.9]} 17. Nb5 {[%clk 0:01:57.7]} 17... Bc5 {[%clk 0:01:44.2]} 18. Bc3
{[%clk 0:01:52]} 18... R5a6 {[%clk 0:01:42.7]} 19. Kh1 {[%clk 0:01:29]} 19...
Nd4 {[%clk 0:01:40.9]} 20. f4 {[%clk 0:01:29.1]} 20... Nxb5 {[%clk 0:01:31.8]}
21. axb5 {[%clk 0:01:27.6]} 21... Rxa1 {[%clk 0:01:32.2]} 22. Bxa1 {[%clk
0:01:26.1]} 22... Bd4 {[%clk 0:01:32.8]} 23. Bxd4 {[%clk 0:01:17.6]} 23... Qxd4
{[%clk 0:01:32.6]} 24. fxe5 {[%clk 0:01:17.9]} 24... Qxe5 {[%clk 0:01:31.8]} 25.
d4 {[%clk 0:01:17.5]} 25... Qxb5 {[%clk 0:01:31.7]} 26. e5 {[%clk 0:01:17.9]}
26... Ne8 {[%clk 0:01:06.4]} 27. Qf3 {[%clk 0:01:16.9]} 27... Qd7 {[%clk
0:01:05]} 28. Qxb7 {[%clk 0:01:09.8]} 28... Rd8 {[%clk 0:01:04.6]} 29. d5 {[%clk
0:01:08.3]} 29... Qg4 {[%clk 0:00:56.8]} 30. d6 {[%clk 0:01:04.4]} 30... Qd7
{[%clk 0:00:51.7]} 31. Bc6 {[%clk 0:00:45.9]} 31... Qe6 {[%clk 0:00:49.2]} 32.
dxc7 {[%clk 0:00:10.7]} 32... Nxc7 {[%clk 0:00:33.3]} 33. Qxc7 {[%clk 0:00:09]}
33... Rc8 {[%clk 0:00:34]} 34. Rd1 {[%clk 0:00:06.9]} 34... h5 {[%clk
0:00:22.3]} 35. Rd8+ {[%clk 0:00:06.5]} 35... Rxd8 {[%clk 0:00:22.2]} 36. Qxd8+
{[%clk 0:00:07.4]} 36... Kh7 {[%clk 0:00:23]} 37. Be4+ {[%clk 0:00:07.1]} 37...
g6 {[%clk 0:00:22.5]} 38. Qf6 {[%clk 0:00:05.1]} 38... Qc4 {[%clk 0:00:20.7]}
39. Qf4 {[%clk 0:00:04.1]} 39... Kg7 {[%clk 0:00:19.4]} 40. Kg2 {[%clk
0:00:03.2]} 40... Qe2+ {[%clk 0:00:18.8]} 41. Kh3 {[%clk 0:00:03.1]} 41... Qc4
{[%clk 0:00:13.8]} 42. Qf6+ {[%clk 0:00:02.4]} 42... Kh7 {[%clk 0:00:10.7]} 43.
e6 {[%clk 0:00:01.1]} 43... Qxe6+ {[%clk 0:00:06.9]} 44. Qxe6 {[%clk 0:00:01.4]}
44... fxe6 {[%clk 0:00:07.8]} 45. Kg2 {[%clk 0:00:01.2]} 45... Kh6 {[%clk
0:00:07.4]} 46. Kf3 {[%clk 0:00:02.1]} 46... Kg5 {[%clk 0:00:08.1]} 47. Ke3
{[%clk 0:00:02.4]} 47... Kf6 {[%clk 0:00:08.3]} 48. Bg2 {[%clk 0:00:02.9]} 48...
g5 {[%clk 0:00:08.1]} 49. Kf3 {[%clk 0:00:03.8]} 49... Kf5 {[%clk 0:00:07.8]}
50. Bf1 {[%clk 0:00:03.4]} 50... e5 {[%clk 0:00:07.1]} 51. Be2 {[%clk
0:00:03.3]} 51... e4+ {[%clk 0:00:05.7]} 52. Ke3 {[%clk 0:00:03.8]} 52... h4
{[%clk 0:00:05]} 53. g4+ {[%clk 0:00:03.5]} 53... Ke5 {[%clk 0:00:05.4]} 54. h3
{[%clk 0:00:03.7]} 54... Kd5 {[%clk 0:00:05.3]} 55. Bf1 {[%clk 0:00:04.3]} 55...
Ke5 {[%clk 0:00:06]} 56. Bg2 {[%clk 0:00:05]} 1-0

[Event "Early-Titled-Tuesday-Blitz-May-14-2024"]
[Site "Chess.com"]
[Date "2024.05.14"]
[Round "5"]
[White "aloe_normansen"]
[Black "IMRosen"]
[Result "0-1"]
[WhiteElo "2571"]
[BlackElo "2785"]
[TimeControl "180+1"]
[EndTime "8:58:42 PDT"]
[Termination "IMRosen won on time"]

1. e4 {[%clk 0:03:00.9]} 1... c5 {[%clk 0:02:52.4]} 2. Nf3 {[%clk 0:03:00.3]}
2... Nc6 {[%clk 0:02:52]} 3. d4 {[%clk 0:02:58.6]} 3... cxd4 {[%clk 0:02:52.9]}
4. Nxd4 {[%clk 0:02:59.5]} 4... g6 {[%clk 0:02:51.6]} 5. c4 {[%clk 0:02:57.2]}
5... Nf6 {[%clk 0:02:51.5]} 6. Nc3 {[%clk 0:02:56.7]} 6... d6 {[%clk 0:02:51.9]}
7. Be2 {[%clk 0:02:55.7]} 7... Nxd4 {[%clk 0:02:52.2]} 8. Qxd4 {[%clk
0:02:55.7]} 8... Bg7 {[%clk 0:02:52.9]} 9. Be3 {[%clk 0:02:49.4]} 9... O-O
{[%clk 0:02:50.8]} 10. Qd2 {[%clk 0:02:46.1]} 10... a5 {[%clk 0:02:50.9]} 11. f3
{[%clk 0:02:43]} 11... a4 {[%clk 0:02:50.9]} 12. Kf2 {[%clk 0:02:32.8]} 12...
Qa5 {[%clk 0:02:44.3]} 13. Rab1 {[%clk 0:02:29.2]} 13... Be6 {[%clk 0:02:43.3]}
14. Nd5 {[%clk 0:02:16.1]} 14... Nxd5 {[%clk 0:02:12.6]} 15. cxd5 {[%clk
0:02:17]} 15... Bd7 {[%clk 0:02:06.4]} 16. Qxa5 {[%clk 0:02:10.1]} 16... Rxa5
{[%clk 0:02:05.5]} 17. Rhc1 {[%clk 0:02:10.8]} 17... Bb5 {[%clk 0:01:56.9]} 18.
Bd2 {[%clk 0:02:02.7]} 18... Bxe2 {[%clk 0:01:50.2]} 19. Bxa5 {[%clk 0:02:02.1]}
19... Bd3 {[%clk 0:01:50.6]} 20. Bc3 {[%clk 0:01:49.8]} 20... Bxb1 {[%clk
0:01:48.2]} 21. Bxg7 {[%clk 0:01:48.5]} 21... Kxg7 {[%clk 0:01:49.1]} 22. Rxb1
{[%clk 0:01:48.9]} 22... Rc8 {[%clk 0:01:49.8]} 23. Re1 {[%clk 0:01:45.5]} 23...
b5 {[%clk 0:01:44.3]} 24. a3 {[%clk 0:01:42.4]} 24... Kf6 {[%clk 0:01:41.7]} 25.
Re2 {[%clk 0:01:40.5]} 25... Rc1 {[%clk 0:01:41.6]} 26. Ke3 {[%clk 0:01:37.2]}
26... h5 {[%clk 0:01:36.2]} 27. f4 {[%clk 0:01:25.2]} 27... h4 {[%clk
0:01:30.2]} 28. Kd4 {[%clk 0:01:21.8]} 28... Rh1 {[%clk 0:01:19.7]} 29. h3
{[%clk 0:01:17.4]} 29... Rc1 {[%clk 0:01:13]} 30. Kd3 {[%clk 0:01:06.6]} 30...
Rc4 {[%clk 0:00:49.2]} 31. Rf2 {[%clk 0:00:50.4]} 31... e6 {[%clk 0:00:37.1]}
32. dxe6 {[%clk 0:00:33]} 32... fxe6 {[%clk 0:00:35.3]} 33. Re2 {[%clk
0:00:31.8]} 33... d5 {[%clk 0:00:20.8]} 34. exd5 {[%clk 0:00:30.7]} 34... exd5
{[%clk 0:00:21.7]} 35. Re5 {[%clk 0:00:25.9]} 35... Rxf4 {[%clk 0:00:13.2]} 36.
Rxd5 {[%clk 0:00:26.2]} 36... Rf2 {[%clk 0:00:13.9]} 37. Rxb5 {[%clk 0:00:23.5]}
37... Rxg2 {[%clk 0:00:14.4]} 38. Rb4 {[%clk 0:00:24]} 38... Rg3+ {[%clk
0:00:14.9]} 39. Ke2 {[%clk 0:00:20.7]} 39... Rxh3 {[%clk 0:00:15]} 40. Rxa4
{[%clk 0:00:20.7]} 40... Rh2+ {[%clk 0:00:15.6]} 41. Kf3 {[%clk 0:00:18.8]}
41... g5 {[%clk 0:00:07.1]} 42. Ra6+ {[%clk 0:00:18.5]} 42... Kf5 {[%clk
0:00:07.4]} 43. Ra5+ {[%clk 0:00:18.8]} 43... Kg6 {[%clk 0:00:07.7]} 44. b4
{[%clk 0:00:10.1]} 44... Kh5 {[%clk 0:00:07]} 45. Rc5 {[%clk 0:00:07.4]} 45...
Rh3+ {[%clk 0:00:06.2]} 46. Kg2 {[%clk 0:00:06.9]} 46... Rxa3 {[%clk 0:00:07.1]}
47. b5 {[%clk 0:00:07.5]} 47... Rb3 {[%clk 0:00:07.3]} 48. Kh2 {[%clk
0:00:06.6]} 48... Rb4 {[%clk 0:00:07.4]} 49. Kg2 {[%clk 0:00:06.5]} 49... Kg4
{[%clk 0:00:07.9]} 50. Kf2 {[%clk 0:00:02.7]} 50... Rb2+ {[%clk 0:00:07.9]} 51.
Kg1 {[%clk 0:00:03]} 51... h3 {[%clk 0:00:08]} 52. Rc4+ {[%clk 0:00:01.5]} 52...
Kg3 {[%clk 0:00:08.5]} 53. Rc3+ {[%clk 0:00:01.5]} 53... Kh4 {[%clk 0:00:09]}
54. Rc5 {[%clk 0:00:01.6]} 54... g4 {[%clk 0:00:09.4]} 55. Rc8 {[%clk
0:00:01.5]} 55... Rxb5 {[%clk 0:00:08.9]} 56. Rc1 {[%clk 0:00:00.7]} 56... Rb4
{[%clk 0:00:08]} 57. Kh1 {[%clk 0:00:00.6]} 57... g3 {[%clk 0:00:08.5]} 0-1

[Event "Early-Titled-Tuesday-Blitz-May-14-2024"]
[Site "Chess.com"]
[Date "2024.05.14"]
[Round "5"]
[White "AlphaGoosee"]
[Black "viktorgen2021"]
[Result "0-1"]
[WhiteElo "2629"]
[BlackElo "2503"]
[TimeControl "180+1"]
[EndTime "8:58:43 PDT"]
[Termination "viktorgen2021 won by resignation"]

1. e4 {[%clk 0:02:58.8]} 1... g6 {[%clk 0:02:58.7]} 2. d4 {[%clk 0:02:57.3]}
2... Bg7 {[%clk 0:02:59.2]} 3. Nc3 {[%clk 0:02:55.5]} 3... d6 {[%clk 0:02:58.2]}
4. Be3 {[%clk 0:02:55.1]} 4... c6 {[%clk 0:02:57.2]} 5. Qd2 {[%clk 0:02:51.1]}
5... Nd7 {[%clk 0:02:55.3]} 6. h4 {[%clk 0:02:48.9]} 6... h5 {[%clk 0:02:55.1]}
7. Nf3 {[%clk 0:02:45.4]} 7... Ngf6 {[%clk 0:02:54.8]} 8. Ng5 {[%clk 0:02:44.3]}
8... Ng4 {[%clk 0:02:42.4]} 9. Bc4 {[%clk 0:02:35.9]} 9... O-O {[%clk
0:02:35.3]} 10. O-O-O {[%clk 0:02:19.4]} 10... b5 {[%clk 0:02:31.7]} 11. Bb3
{[%clk 0:02:14]} 11... Nxe3 {[%clk 0:02:31.1]} 12. fxe3 {[%clk 0:02:07.6]} 12...
Nb6 {[%clk 0:02:31.2]} 13. Rdg1 {[%clk 0:01:47.8]} 13... Bg4 {[%clk 0:02:29.2]}
14. Nd1 {[%clk 0:01:32.7]} 14... Nc4 {[%clk 0:02:28.5]} 15. Bxc4 {[%clk
0:01:29.4]} 15... bxc4 {[%clk 0:02:29.4]} 16. Nf2 {[%clk 0:01:29]} 16... Qd7
{[%clk 0:02:23]} 17. Nxg4 {[%clk 0:01:22]} 17... Qxg4 {[%clk 0:02:23.9]} 18. Rf1
{[%clk 0:01:22.2]} 18... f6 {[%clk 0:01:58.4]} 19. Nh3 {[%clk 0:01:17.4]} 19...
Qxe4 {[%clk 0:01:56.8]} 20. Qe2 {[%clk 0:01:00.5]} 20... c3 {[%clk 0:01:36.6]}
21. bxc3 {[%clk 0:00:59.4]} 21... Rab8 {[%clk 0:01:34.2]} 22. Qd3 {[%clk
0:00:38.7]} 22... d5 {[%clk 0:01:05.3]} 23. Qxe4 {[%clk 0:00:27.9]} 23... dxe4
{[%clk 0:01:06.2]} 24. Kd2 {[%clk 0:00:28.6]} 24... Rb2 {[%clk 0:01:04.7]} 25.
Rb1 {[%clk 0:00:28.4]} 25... Rfb8 {[%clk 0:01:03.9]} 26. Rxb2 {[%clk 0:00:24.9]}
26... Rxb2 {[%clk 0:01:04.8]} 27. Ra1 {[%clk 0:00:21.5]} 27... Kf7 {[%clk
0:01:05]} 28. Nf2 {[%clk 0:00:17.5]} 28... f5 {[%clk 0:01:00.9]} 29. Nh3 {[%clk
0:00:17.3]} 29... Kf6 {[%clk 0:00:57.9]} 30. g3 {[%clk 0:00:14.3]} 30... Bh6
{[%clk 0:00:54.5]} 31. Nf4 {[%clk 0:00:13]} 31... a5 {[%clk 0:00:41.6]} 32. c4
{[%clk 0:00:12.5]} 32... g5 {[%clk 0:00:30.2]} 33. Nxh5+ {[%clk 0:00:10.8]}
33... Kg6 {[%clk 0:00:30.2]} 34. hxg5 {[%clk 0:00:10.7]} 34... Kxg5 {[%clk
0:00:28.6]} 35. Nf4 {[%clk 0:00:10]} 35... Kg4 {[%clk 0:00:29.2]} 36. Kc3 {[%clk
0:00:08]} 36... Rb7 {[%clk 0:00:25.8]} 37. c5 {[%clk 0:00:07.7]} 37... Kf3
{[%clk 0:00:22.3]} 38. d5 {[%clk 0:00:06.9]} 38... cxd5 {[%clk 0:00:16.5]} 39.
Rf1+ {[%clk 0:00:05.6]} 39... Kxe3 {[%clk 0:00:14.3]} 40. Nxd5+ {[%clk
0:00:05.2]} 40... Ke2 {[%clk 0:00:14.6]} 41. Rh1 {[%clk 0:00:04.9]} 41... Bd2+
{[%clk 0:00:13.5]} 42. Kc4 {[%clk 0:00:05.1]} 42... e6 {[%clk 0:00:14.1]} 43. c6
{[%clk 0:00:04.6]} 43... Rb8 {[%clk 0:00:14.5]} 44. Nf4+ {[%clk 0:00:04.4]}
44... Bxf4 {[%clk 0:00:14.3]} 45. gxf4 {[%clk 0:00:05]} 45... Rc8 {[%clk
0:00:14.2]} 46. Kc5 {[%clk 0:00:05.4]} 46... e3 {[%clk 0:00:14]} 47. Kd6 {[%clk
0:00:05.9]} 47... Kd2 {[%clk 0:00:13.5]} 48. Kd7 {[%clk 0:00:06.4]} 48... Rg8
{[%clk 0:00:13.2]} 49. c7 {[%clk 0:00:06.8]} 49... Kxc2 {[%clk 0:00:12.3]} 50.
Kxe6 {[%clk 0:00:06.6]} 50... e2 {[%clk 0:00:10.6]} 51. Kxf5 {[%clk 0:00:05]}
51... Rc8 {[%clk 0:00:10.5]} 52. Ke4 {[%clk 0:00:04]} 52... Kd2 {[%clk
0:00:09.3]} 53. Kf3 {[%clk 0:00:04.1]} 53... e1=Q {[%clk 0:00:09]} 54. f5 {[%clk
0:00:05]} 54... Qxh1+ {[%clk 0:00:08.9]} 0-1

[Event "Early-Titled-Tuesday-Blitz-May-14-2024"]
[Site "Chess.com"]
[Date "2024.05.14"]
[Round "5"]
[White "Vesper2018"]
[Black "SirStrateg"]
[Result "0-1"]
[WhiteElo "2550"]
[BlackElo "2686"]
[TimeControl "180+1"]
[EndTime "8:58:45 PDT"]
[Termination "SirStrateg won by resignation"]

1. e4 {[%clk 0:02:56.8]} 1... d6 {[%clk 0:02:59.6]} 2. d4 {[%clk 0:02:56.6]}
2... Nf6 {[%clk 0:03:00.2]} 3. Nc3 {[%clk 0:02:56.9]} 3... c6 {[%clk 0:03:00.8]}
4. f4 {[%clk 0:02:57.2]} 4... Qa5 {[%clk 0:03:00.7]} 5. Bd3 {[%clk 0:02:56.6]}
5... e5 {[%clk 0:03:00.8]} 6. Nf3 {[%clk 0:02:56.6]} 6... exd4 {[%clk
0:03:01.3]} 7. Nxd4 {[%clk 0:02:56.5]} 7... g6 {[%clk 0:03:00.1]} 8. O-O {[%clk
0:02:55.9]} 8... Bg7 {[%clk 0:03:00.5]} 9. Kh1 {[%clk 0:02:56.3]} 9... O-O
{[%clk 0:02:58.1]} 10. Be3 {[%clk 0:02:51]} 10... Re8 {[%clk 0:02:53.9]} 11. Qd2
{[%clk 0:02:49.3]} 11... Nbd7 {[%clk 0:02:49.1]} 12. a3 {[%clk 0:02:46.4]} 12...
a6 {[%clk 0:02:46.7]} 13. b4 {[%clk 0:02:37.2]} 13... Qc7 {[%clk 0:02:46.7]} 14.
Rae1 {[%clk 0:02:32.1]} 14... c5 {[%clk 0:02:38.5]} 15. Nb3 {[%clk 0:02:29.1]}
15... c4 {[%clk 0:02:35.2]} 16. e5 {[%clk 0:02:17.2]} 16... dxe5 {[%clk
0:02:30.1]} 17. fxe5 {[%clk 0:02:17.2]} 17... Nxe5 {[%clk 0:02:25.8]} 18. Rxf6
{[%clk 0:02:16.2]} 18... Bxf6 {[%clk 0:02:09.4]} 19. Nd5 {[%clk 0:02:15.9]}
19... Qd8 {[%clk 0:02:05.3]} 20. Be4 {[%clk 0:01:35.7]} 20... cxb3 {[%clk
0:01:56.6]} 21. Bb6 {[%clk 0:01:35.3]} 21... Nc4 {[%clk 0:01:54.2]} 22. Bxd8
{[%clk 0:01:31.8]} 22... Nxd2 {[%clk 0:01:54.3]} 23. Nxf6+ {[%clk 0:01:29.7]}
23... Kf8 {[%clk 0:01:54.4]} 24. Nxe8 {[%clk 0:01:24.3]} 24... b2 {[%clk
0:01:49]} 25. Nc7 {[%clk 0:01:02]} 25... Rb8 {[%clk 0:01:34.4]} 26. Bf6 {[%clk
0:00:56.8]} 26... Nxe4 {[%clk 0:01:23.8]} 27. Bxb2 {[%clk 0:00:55.6]} 27... f5
{[%clk 0:01:18.4]} 28. c4 {[%clk 0:00:51.3]} 28... Bd7 {[%clk 0:01:16]} 29. Nd5
{[%clk 0:00:47.1]} 29... Be6 {[%clk 0:01:07.4]} 30. Nf6 {[%clk 0:00:41.7]} 30...
Nxf6 {[%clk 0:00:57.8]} 31. Rxe6 {[%clk 0:00:41.1]} 31... Ne4 {[%clk 0:00:54.6]}
32. Rb6 {[%clk 0:00:39.4]} 32... Rd8 {[%clk 0:00:53.1]} 33. h3 {[%clk
0:00:34.5]} 33... Rd1+ {[%clk 0:00:48.9]} 34. Kh2 {[%clk 0:00:34.4]} 34... f4
{[%clk 0:00:47.8]} 35. Be5 {[%clk 0:00:27.4]} 35... g5 {[%clk 0:00:45]} 36. h4
{[%clk 0:00:16.8]} 36... Ng3 {[%clk 0:00:23.8]} 37. Kh3 {[%clk 0:00:15.1]} 37...
h5 {[%clk 0:00:21.6]} 38. Bxf4 {[%clk 0:00:14.3]} 38... gxf4 {[%clk 0:00:18.4]}
39. Rf6+ {[%clk 0:00:14.8]} 39... Ke7 {[%clk 0:00:19]} 40. Rxf4 {[%clk
0:00:15.2]} 40... Nf1 {[%clk 0:00:16.4]} 41. Rf5 {[%clk 0:00:15.2]} 41... Rd3+
{[%clk 0:00:16.7]} 42. g3 {[%clk 0:00:14.8]} 42... Nxg3 {[%clk 0:00:17.2]} 43.
Re5+ {[%clk 0:00:13.8]} 43... Kd6 {[%clk 0:00:15.5]} 44. Re8 {[%clk 0:00:13.9]}
44... Nf5+ {[%clk 0:00:13.9]} 45. Kg2 {[%clk 0:00:14.2]} 45... Nxh4+ {[%clk
0:00:13.4]} 46. Kf2 {[%clk 0:00:14.9]} 46... Rf3+ {[%clk 0:00:12.7]} 47. Ke2
{[%clk 0:00:15]} 47... Rxa3 {[%clk 0:00:13]} 48. Rh8 {[%clk 0:00:12.9]} 48...
Nf5 {[%clk 0:00:13]} 49. Kd2 {[%clk 0:00:11.7]} 49... h4 {[%clk 0:00:12.4]} 50.
Rh7 {[%clk 0:00:11.8]} 50... Kc6 {[%clk 0:00:10.2]} 51. Kc2 {[%clk 0:00:10]}
51... h3 {[%clk 0:00:07.4]} 52. Rh5 {[%clk 0:00:09.6]} 52... Rf3 {[%clk
0:00:07.6]} 53. Kb2 {[%clk 0:00:07.8]} 53... b6 {[%clk 0:00:06.2]} 54. Rh7
{[%clk 0:00:06.5]} 54... a5 {[%clk 0:00:06.5]} 55. bxa5 {[%clk 0:00:06.7]} 55...
bxa5 {[%clk 0:00:06.7]} 56. Ka2 {[%clk 0:00:07.3]} 56... Kc5 {[%clk 0:00:07]}
57. Rh5 {[%clk 0:00:07]} 57... Kxc4 {[%clk 0:00:06.7]} 58. Kb2 {[%clk
0:00:07.6]} 58... a4 {[%clk 0:00:07]} 59. Ka2 {[%clk 0:00:07.5]} 59... Kd4
{[%clk 0:00:07.1]} 60. Kb2 {[%clk 0:00:07.1]} 60... Ke4 {[%clk 0:00:07.7]} 0-1

[Event "Early-Titled-Tuesday-Blitz-May-14-2024"]
[Site "Chess.com"]
[Date "2024.05.14"]
[Round "5"]
[White "Resourchess"]
[Black "PawnEatingZombie"]
[Result "0-1"]
[WhiteElo "2359"]
[BlackElo "2282"]
[TimeControl "180+1"]
[EndTime "8:58:47 PDT"]
[Termination "PawnEatingZombie won on time"]

1. d4 {[%clk 0:03:00.9]} 1... Nf6 {[%clk 0:02:55.9]} 2. c4 {[%clk 0:02:56.3]}
2... g6 {[%clk 0:02:55.4]} 3. f3 {[%clk 0:02:55.8]} 3... Bg7 {[%clk 0:02:53.6]}
4. e4 {[%clk 0:02:55.3]} 4... d6 {[%clk 0:02:53.8]} 5. Nc3 {[%clk 0:02:54.2]}
5... O-O {[%clk 0:02:54]} 6. Be3 {[%clk 0:02:53.3]} 6... a6 {[%clk 0:02:54.1]}
7. Nge2 {[%clk 0:02:49.3]} 7... Nc6 {[%clk 0:02:53.7]} 8. Rc1 {[%clk 0:02:44.5]}
8... Na5 {[%clk 0:02:46]} 9. Nf4 {[%clk 0:02:10.3]} 9... e5 {[%clk 0:02:00.9]}
10. dxe5 {[%clk 0:02:08]} 10... dxe5 {[%clk 0:02:00.1]} 11. Nfd5 {[%clk
0:01:54.2]} 11... h6 {[%clk 0:01:33.4]} 12. Be2 {[%clk 0:01:31.2]} 12... Nc6
{[%clk 0:01:32.9]} 13. O-O {[%clk 0:01:27]} 13... Nd7 {[%clk 0:01:14.8]} 14. Qd2
{[%clk 0:01:12.4]} 14... Kh7 {[%clk 0:01:14.4]} 15. Rfd1 {[%clk 0:01:08.4]}
15... Nd4 {[%clk 0:01:13.1]} 16. Bf1 {[%clk 0:00:59.2]} 16... c6 {[%clk
0:01:03.3]} 17. Nb4 {[%clk 0:00:58.1]} 17... Nc5 {[%clk 0:00:55.8]} 18. Nc2
{[%clk 0:00:54.5]} 18... Nce6 {[%clk 0:00:55.7]} 19. Kh1 {[%clk 0:00:49.8]}
19... a5 {[%clk 0:00:54.2]} 20. b3 {[%clk 0:00:48.1]} 20... Qc7 {[%clk
0:00:50.9]} 21. Ne2 {[%clk 0:00:47.4]} 21... c5 {[%clk 0:00:46.8]} 22. Ncxd4
{[%clk 0:00:44.7]} 22... cxd4 {[%clk 0:00:44.4]} 23. Bg1 {[%clk 0:00:43.8]}
23... Nc5 {[%clk 0:00:38.7]} 24. Ng3 {[%clk 0:00:39.6]} 24... h5 {[%clk
0:00:36.8]} 25. Bd3 {[%clk 0:00:38.8]} 25... h4 {[%clk 0:00:36.2]} 26. Nf1
{[%clk 0:00:39.1]} 26... h3 {[%clk 0:00:36.4]} 27. g3 {[%clk 0:00:38.3]} 27...
Bd7 {[%clk 0:00:33]} 28. Bf2 {[%clk 0:00:36.7]} 28... Qb6 {[%clk 0:00:31.4]} 29.
Kg1 {[%clk 0:00:33.7]} 29... Qb4 {[%clk 0:00:31]} 30. f4 {[%clk 0:00:30.7]}
30... Qxd2 {[%clk 0:00:29.4]} 31. Rxd2 {[%clk 0:00:28.9]} 31... Bh6 {[%clk
0:00:27.3]} 32. Rdd1 {[%clk 0:00:22.4]} 32... Bg4 {[%clk 0:00:26.3]} 33. Rd2
{[%clk 0:00:18.5]} 33... exf4 {[%clk 0:00:22.9]} 34. Bxd4 {[%clk 0:00:15.3]}
34... Nxd3 {[%clk 0:00:18.6]} 35. Rxd3 {[%clk 0:00:14.7]} 35... fxg3 {[%clk
0:00:18.7]} 36. Re1 {[%clk 0:00:13.3]} 36... g2 {[%clk 0:00:18.3]} 37. Ng3
{[%clk 0:00:12.8]} 37... Rad8 {[%clk 0:00:15.2]} 38. Kf2 {[%clk 0:00:11.3]}
38... Bg7 {[%clk 0:00:12.4]} 39. Bxg7 {[%clk 0:00:10.5]} 39... Kxg7 {[%clk
0:00:12.2]} 40. Rxd8 {[%clk 0:00:10.3]} 40... Rxd8 {[%clk 0:00:11.5]} 41. Ke3
{[%clk 0:00:09.7]} 41... Kf6 {[%clk 0:00:07.4]} 42. Ne2 {[%clk 0:00:09.4]} 42...
Bxe2 {[%clk 0:00:06.9]} 43. Kxe2 {[%clk 0:00:09.4]} 43... Ke5 {[%clk 0:00:06.5]}
44. Kf2 {[%clk 0:00:09.9]} 44... Rd4 {[%clk 0:00:04.1]} 45. Kg3 {[%clk
0:00:09.4]} 45... Rxe4 {[%clk 0:00:04.1]} 46. Rd1 {[%clk 0:00:09.6]} 46... Rd4
{[%clk 0:00:03.9]} 47. Re1+ {[%clk 0:00:09.5]} 47... Re4 {[%clk 0:00:04.5]} 48.
Rd1 {[%clk 0:00:10]} 48... f5 {[%clk 0:00:05]} 49. Kxh3 {[%clk 0:00:10.2]} 49...
g5 {[%clk 0:00:04.8]} 50. Kxg2 {[%clk 0:00:10.3]} 50... g4 {[%clk 0:00:05.2]}
51. Kf2 {[%clk 0:00:10.7]} 51... Kf4 {[%clk 0:00:05.6]} 52. Rd5 {[%clk
0:00:10.5]} 52... Kg5 {[%clk 0:00:04.5]} 53. Rxa5 {[%clk 0:00:10.5]} 53... Kf4
{[%clk 0:00:03.7]} 54. Rb5 {[%clk 0:00:10.6]} 54... Rd4 {[%clk 0:00:04.2]} 55.
Rd5 {[%clk 0:00:08.8]} 55... Rxd5 {[%clk 0:00:03.7]} 56. cxd5 {[%clk 0:00:09.1]}
56... Ke5 {[%clk 0:00:04.4]} 57. Kg3 {[%clk 0:00:08.6]} 57... Kxd5 {[%clk
0:00:05]} 58. Kf4 {[%clk 0:00:08.4]} 58... Ke6 {[%clk 0:00:04.3]} 59. b4 {[%clk
0:00:08.4]} 59... b5 {[%clk 0:00:03.2]} 60. Ke3 {[%clk 0:00:02.5]} 60... Kf6
{[%clk 0:00:03.7]} 61. Kf4 {[%clk 0:00:02.2]} 61... Ke6 {[%clk 0:00:04.3]} 62.
a3 {[%clk 0:00:02.2]} 62... Kf6 {[%clk 0:00:04.2]} 0-1